bitfinex-derivatives/quotes_ETHF0:USTF0_20250727
["timestamp","ask_amount","ask_price","bid_price","bid_amount"]
[1753614940540,23.08762,3827.8,3827.7,6.1043]
[1753614940939,24.49822,3827.8,3827.7,6.1043]
[1753614941141,0.52232,3827.8,3827.7,6.62662]
[1753614941442,24.49822,3827.8,3827.7,6.1043]
[1753614941842,24.49822,3827.8,3827.7,3.3999]
[1753614942041,24.49822,3827.8,3827.7,6.1043]
[1753614942342,22.11732,3827.8,3827.7,6.62662]
[1753614942538,22.11732,3827.8,3827.7,6.1043]
[1753614942941,23.08762,3827.8,3827.7,6.1043]
[1753614943144,22.11732,3827.8,3827.7,6.1043]
[1753614943739,23.08762,3827.8,3827.7,6.1043]
[1753614943939,24.49822,3827.8,3827.7,6.1043]
[1753614944532,23.08762,3827.8,3827.7,6.1043]
[1753614944739,22.11732,3827.8,3827.7,6.1043]
[1753614945041,0.2,3827.9,3827.8,3.8118]
[1753614945241,22.31629,3827.9,3827.8,6.62661]
[1753614945941,21.794,3827.9,3827.8,6.62661]
[1753614946138,0.72229,3827.9,3827.8,6.62661]
[1753614946338,0.2,3827.9,3827.8,6.62661]
[1753614946942,0.2,3827.9,3827.8,9.83441]
[1753614947544,22.13224,3828.3,3828.2,6.62655]
[1753614948138,0.54024,3828.3,3828.2,6.62655]
[1753614948546,1.51054,3828.3,3828.2,6.62655]
[1753614949044,2.92114,3828.3,3828.2,6.62655]
[1753614949344,0.54024,3828.3,3828.2,6.62655]
[1753614951540,0.018,3828.3,3828.2,6.62655]
[1753614952745,1.51054,3828.3,3828.2,6.62655]
[1753614952945,2.92114,3828.3,3828.2,6.62655]
[1753614953139,0.018,3828.3,3828.2,6.62655]
[1753614953639,1.51054,3828.3,3828.2,6.1043]
[1753614953845,0.018,3828.3,3828.2,6.62655]
[1753614954539,1.30538,3829.0,3828.2,6.62655]
[1753614954540,6.15342,3829.2,3829.1,0.9082]
[1753614955045,2.94568,3828.7,3828.6,4.334]
[1753614955344,2.94568,3828.7,3828.6,6.1043]
[1753614955939,2.94568,3828.7,3828.6,4.6973]
[1753614956340,2.94568,3828.7,3828.6,3.3999]
[1753614956637,1.94725,3828.2,3828.1,3.7891]
[1753614956843,1.51569,3827.9,3827.8,1.4966]
[1753614957044,2.94069,3827.9,3827.8,3.7891]
[1753614957350,2.94069,3827.9,3827.8,6.1043]
[1753614957946,2.94069,3827.9,3827.8,3.3999]
[1753614958546,2.94069,3827.9,3827.8,6.2569]
[1753614959045,2.94069,3827.9,3827.8,6.77921]
[1753614959648,2.94069,3827.9,3827.8,6.2569]
[1753614961847,2.94069,3827.9,3827.8,3.3999]
[1753614962053,2.94069,3827.9,3827.8,0.9082]
[1753614962248,0.52235,3827.5,3827.4,3.7806]
[1753614962450,3.03065,3827.5,3827.4,4.6839]
[1753614962747,3.03065,3827.5,3827.4,8.5255]
[1753614962948,3.03065,3827.5,3827.4,9.4376]
[1753614963554,3.03065,3827.5,3827.4,9.95996]
[1753614963758,3.03065,3827.5,3827.4,9.4376]
[1753614964061,3.03065,3827.5,3827.4,9.95996]
[1753614964256,3.03054,3828.3,3828.2,6.2298]
[1753614964455,24.61354,3828.3,3828.2,6.2298]
[1753614965057,24.61354,3828.3,3828.2,3.3728]
[1753614965265,24.61354,3828.3,3828.2,6.2298]
[1753614965563,3.03054,3828.3,3828.2,6.2298]
[1753614965962,24.61254,3828.3,3828.2,6.2298]
[1753614966161,1.46344,3828.3,3828.2,6.2298]
[1753614966559,24.58714,3828.3,3828.2,6.2298]
[1753614967265,24.61254,3828.3,3828.2,6.2298]
[1753614967655,3.03054,3828.3,3828.2,6.2298]
[1753614967868,0.52222,3828.5,3828.4,0.52221]
[1753614968168,0.52221,3828.6,3828.5,6.752]
[1753614968360,3.03051,3828.6,3828.5,6.2298]
[1753614969057,3.03051,3828.6,3828.5,6.75201]
[1753614969264,2.467,3828.6,3828.5,6.75201]
[1753614969468,0.52219,3828.7,3828.6,2.9829]
[1753614969667,0.52219,3828.7,3828.6,6.752]
[1753614969866,1.46339,3828.7,3828.6,6.752]
[1753614970471,2.467,3829.0,3828.9,6.2298]
[1753614970667,1.23576701,3829.0,3828.9,6.75196]
[1753614970864,0.71362701,3829.0,3828.9,6.75196]
[1753614971560,1.23576701,3829.0,3828.9,6.75196]
[1753614971865,0.71362701,3829.0,3828.9,6.75196]
[1753614973475,1.46333,3829.1,3829.0,6.75194]
[1753614973676,2.17726331,3829.1,3829.0,6.75194]
[1753614974273,0.71393331,3829.1,3829.0,6.75194]
[1753614974469,3.74436331,3829.1,3829.0,6.2298]
[1753614974774,3.74436331,3829.1,3829.0,6.75194]
[1753614975171,3.74436331,3829.1,3829.0,6.2298]
[1753614975773,3.18093331,3829.1,3829.0,6.2298]
[1753614975979,1.46333,3829.1,3829.0,6.2298]
[1753614976278,3.74461205,3829.1,3829.0,6.2298]
[1753614976872,3.74461205,3829.1,3829.0,0.9121]
[1753614978179,2.17751205,3829.1,3829.0,3.3728]
[1753614978476,24.60243,3829.1,3829.0,6.2298]
[1753614979486,3.03043,3829.1,3829.0,6.2298]
[1753614981481,0.52213,3829.1,3829.0,6.75194]
[1753614982285,1.46332,3829.2,3829.1,2.98281]
[1753614982478,1.5417,3829.5,3829.1,6.2298]
[1753614982781,3.2078,3829.7,3829.5,6.75186]
[1753614982984,3.72986,3829.7,3829.6,2.4607]
[1753614983281,3.2078,3829.7,3829.6,6.75186]
[1753614983482,1.7258,3829.9,3829.8,0.52203]
[1753614983684,22.29003,3829.9,3829.8,6.75183]
[1753614983983,0.2,3829.9,3829.8,6.75183]
[1753614984182,4.67094,3830.5,3830.4,6.2298]
[1753614984374,6.95090005,3830.5,3830.4,6.2298]
[1753614984576,4.149,3830.5,3830.4,6.75175]
[1753614984784,3.2078,3830.5,3830.4,6.75175]
[1753614985183,3.2078,3830.9,3830.8,2.4607]
[1753614985381,4.44205353,3830.9,3830.8,6.2298]
[1753614985684,6.90905353,3830.9,3830.8,6.2298]
[1753614985991,6.42846353,3830.9,3830.8,6.7517]
[1753614986276,3.74254353,3830.9,3830.8,6.2298]
[1753614986480,4.167,3831.3,3831.2,6.75164]
[1753614986780,5.39929238,3831.3,3831.2,6.2298]
[1753614986979,1.66966238,3831.3,3831.2,6.75164]
[1753614987286,0.018,3831.3,3831.2,6.75164]
[1753614987983,0.018,3831.3,3831.2,6.2298]
[1753614988183,0.018,3831.3,3831.2,6.75164]
[1753614988481,3.25125,3831.9,3831.8,6.1022]
[1753614988685,3.30135,3831.9,3831.8,6.1022]
[1753614988979,0.72175,3831.9,3831.8,6.1022]
[1753614989289,1.2077,3831.9,3831.8,6.1022]
[1753614989678,1.72945,3831.9,3831.8,6.1022]
[1753614990283,0.2,3831.9,3831.8,6.62396]
[1753614990680,0.2,3831.9,3831.8,6.1022]
[1753614990885,0.2,3831.9,3831.8,6.62396]
[1753614991280,1.2077,3831.9,3831.8,6.62396]
[1753614991580,0.2,3831.9,3831.8,6.62396]
[1753614992586,0.2,3831.9,3831.8,6.1022]
[1753614992787,1.2077,3831.9,3831.8,6.62396]
[1753614992984,1.76075,3831.9,3831.8,6.62396]
[1753614993183,2.7796,3831.9,3831.8,6.62396]
[1753614993882,1.2077,3831.9,3831.8,6.62396]
[1753614994887,0.2,3831.9,3831.8,6.62396]
[1753614995085,3.30135,3831.9,3831.8,6.1022]
[1753614995790,0.2,3831.9,3831.8,6.62396]
[1753614997778,2.4982,3832.6,3832.5,6.62387]
[1753614997985,1.61071,3832.9,3832.8,6.1022]
[1753614998179,3.10121,3832.9,3832.8,6.1022]
[1753614998384,3.10121,3832.9,3832.8,0.8593]
[1753614999185,1.0077,3832.6,3832.5,2.837]
[1753614999388,1.0077,3832.9,3832.8,4.37321]
[1753614999590,1.0077,3832.9,3832.8,5.23251]
[1753614999895,3.2078,3833.4,3833.3,2.4699]
[1753615000090,3.2078,3833.4,3833.3,6.62376]
[1753615000288,0.0313,3833.8,3833.3,6.1022]
[1753615000493,1.039,3833.8,3833.7,6.1022]
[1753615000691,1.52919,3833.8,3833.7,6.1022]
[1753615001084,2.5341,3833.8,3833.7,6.61909236]
[1753615001290,1.0077,3833.8,3833.7,6.61909236]
[1753615001493,0.2,3833.9,3833.8,2.99139]
[1753615001684,0.2,3833.9,3833.8,6.62369]
[1753615002085,0.018,3834.3,3834.2,6.62363]
[1753615002590,1.0077,3834.9,3834.8,3.8516]
[1753615002796,1.61537,3834.7,3834.6,1.4822]
[1753615003091,3.15977,3834.7,3834.6,3.7232]
[1753615003295,2.6384,3834.7,3834.6,3.3292]
[1753615003496,3.15977,3834.7,3834.6,3.3292]
[1753615003684,3.15977,3834.7,3834.6,6.1022]
[1753615003883,3.15977,3834.7,3834.6,0.8593]
[1753615004289,3.15977,3834.7,3834.6,1.4553]
[1753615004498,3.15977,3834.7,3834.6,2.3415]
[1753615005788,3.15977,3834.7,3834.6,3.7232]
[1753615005990,3.15977,3834.7,3834.6,6.1022]
[1753615006496,0.52137,3834.7,3834.6,6.1022]
[1753615007398,0.52136,3834.8,3834.6,2.4699]
[1753615007596,1.5444,3834.9,3834.6,2.4699]
[1753615007799,0.52137,3834.7,3834.6,2.4699]
[1753615008094,3.01956,3834.8,3834.7,6.1022]
[1753615008292,0.52134,3834.9,3834.8,6.1022]
[1753615008494,3.15974,3834.9,3834.8,6.1022]
[1753615008695,3.15974,3834.9,3834.8,6.62355]
[1753615008994,3.15974,3834.9,3834.8,6.1022]
[1753615009192,1.0077,3834.9,3834.8,6.62355]
[1753615009391,1.0077,3835.2,3835.1,1.50901]
[1753615009589,3.2078,3835.5,3835.4,0.52127]
[1753615009795,1.094,3835.5,3834.4,3.2078]
[1753615010091,1.0077,3835.4,3835.3,6.1022]
[1753615010296,6.36747,3835.4,3835.3,0.8593]
[1753615010888,0.0539,3835.7,3835.3,4.7109]
[1753615011092,0.52123,3835.7,3835.6,6.1022]
[1753615011287,0.2,3835.9,3835.8,6.1022]
[1753615011499,0.2,3835.9,3835.8,6.62342]
[1753615011691,3.3596,3835.9,3835.8,3.3292]
[1753615011893,3.3596,3835.9,3835.8,0.8593]
[1753615012197,3.15966,3835.5,3835.4,6.1022]
[1753615012505,0.2,3835.9,3835.8,6.1022]
[1753615012688,1.7289,3835.9,3835.8,6.1022]
[1753615012889,3.3596,3835.9,3835.8,6.1022]
[1753615013291,0.7212,3835.9,3835.8,6.1022]
[1753615013601,0.2,3835.9,3835.8,6.62342]
[1753615014295,1.0616,3835.6,3835.5,6.1022]
[1753615014501,0.2,3835.9,3835.8,6.62342]
[1753615015199,3.72893,3836.5,3836.3,0.52114]
[1753615015495,1.3227,3836.8,3836.7,3.3292]
[1753615015801,3.47456,3836.2,3836.1,2.241]
[1753615016003,1.3227,3836.5,3836.4,6.1022]
[1753615016202,0.52112,3836.6,3836.5,6.1022]
[1753615016395,0.5211,3836.7,3836.6,6.1022]
[1753615016592,1.22361707,3836.8,3836.6,6.62331]
[1753615016793,3.72887,3836.9,3836.8,3.8516]
[1753615016992,6.68227,3836.9,3836.8,2.3415]
[1753615017299,7.38517605,3836.9,3836.8,2.3415]
[1753615017690,7.38517605,3836.9,3836.8,1.4553]
[1753615017890,5.97617605,3836.9,3836.8,0.8593]
[1753615018091,1.4898,3836.8,3836.2,0.8504]
[1753615018294,0.52116,3836.3,3836.2,3.52]
[1753615018500,1.96086,3836.3,3836.2,3.52]
[1753615018701,2.71366805,3836.3,3836.2,0.8504]
[1753615019293,0.0501,3835.9,3835.2,2.6696]
[1753615019493,1.4898,3835.4,3835.3,3.52]
[1753615019699,2.01107,3835.4,3835.3,2.1226]
[1753615020204,2.01107,3835.4,3835.3,3.52]
[1753615020596,2.7144361,3835.4,3835.3,0.8504]
[1753615020797,2.9087361,3835.4,3835.3,0.8504]
[1753615020993,2.01112,3835.0,3834.9,2.6696]
[1753615021193,2.7144861,3835.0,3834.9,2.6696]
[1753615021398,2.7144861,3835.0,3834.9,3.52]
[1753615021399,0.7033661,3835.0,3834.9,3.52]
[1753615021600,1.4397,3835.9,3834.7,3.2078]
[1753615021601,0.52128,3835.4,3835.2,2.1226]
[1753615021803,0.52128,3835.4,3834.9,1.2722]
[1753615021804,0.52132,3835.0,3834.9,1.2722]
[1753615022100,1.27533902,3835.0,3834.9,0.8504]
[1753615022403,0.70391902,3835.0,3834.9,4.04134]
[1753615022607,0.5213,3835.2,3835.0,3.52]
[1753615022798,0.70440957,3835.1,3835.0,4.04131]
[1753615023000,2.19330957,3835.1,3835.0,4.04132]
[1753615023201,0.70440957,3835.1,3835.0,4.04132]
[1753615023507,0.70440957,3835.1,3833.9,40.16335]
[1753615023508,1.96112,3834.3,3834.2,0.8504]
[1753615023701,2.71472957,3834.3,3834.2,0.8504]
[1753615023902,0.70440957,3834.3,3834.2,4.04143]
[1753615024206,1.22579957,3834.6,3834.3,0.52141]
[1753615024402,0.57057,3834.7,3834.5,3.2078]
[1753615024604,1.4397,3835.0,3834.7,3.52]
[1753615024801,0.70545898,3834.9,3834.8,2.1226]
[1753615025004,1.22679898,3834.9,3834.8,2.1226]
[1753615025196,0.70545898,3834.9,3834.8,4.04135]
[1753615025703,0.52122,3835.9,3835.6,0.52124]
[1753615025907,0.0492,3836.5,3836.2,1.2722]
[1753615026108,1.4889,3836.5,3836.4,6.7278]
[1753615026309,0.52112,3836.5,3836.4,3.52]
[1753615026804,1.4889,3836.5,3836.4,4.04113]
[1753615027008,1.4397,3836.9,3836.3,3.72894]
[1753615027200,3.2078,3837.0,3836.4,0.52113]
[1753615027406,3.2078,3837.0,3836.7,3.52]
[1753615027407,1.4397,3836.8,3836.7,3.52]
[1753615027595,0.0492,3836.9,3836.3,3.2078]
[1753615027596,0.0492,3836.9,3836.8,2.1226]
[1753615027802,2.00997,3836.9,3836.8,3.52]
[1753615028109,2.00997,3836.9,3836.8,2.1226]
[1753615028710,1.4889,3836.9,3836.8,5.3304]
[1753615029008,1.4889,3836.9,3836.8,6.7278]
[1753615029310,0.018,3837.3,3837.1,3.52]
[1753615029311,1.5069,3837.3,3837.1,3.52]
[1753615029607,2.02791,3837.3,3837.2,2.2478]
[1753615030803,2.02791,3837.3,3837.2,0.8504]
[1753615031004,1.6826,3837.2,3836.0,3.2078]
[1753615031305,0.5212,3835.9,3835.8,3.52]
[1753615031501,1.3979471,3837.0,3836.0,0.52118]
[1753615031701,1.4889,3837.0,3836.4,1.3974]
[1753615031906,0.0492,3836.9,3836.3,3.52]
[1753615032112,2.01004,3836.4,3836.3,0.8504]
[1753615032809,1.4397,3836.8,3836.3,2.6696]
[1753615032999,0.0492,3837.0,3836.5,0.8504]
[1753615033199,0.52109,3836.8,3836.6,3.52]
[1753615033605,0.52109,3836.8,3836.6,0.8504]
[1753615033804,0.52107,3836.9,3836.6,0.52111]
[1753615034004,0.52107,3836.9,3836.8,3.52]
[1753615034202,0.52106,3837.0,3836.8,1.91847]
[1753615034403,0.57027,3836.9,3836.8,3.52]
[1753615034604,2.00997,3836.9,3836.8,0.8504]
[1753615034804,0.52112,3836.5,3836.4,3.52]
[1753615035110,2.01002,3836.5,3836.4,0.8504]
[1753615035411,3.2078,3836.8,3836.4,3.52]
[1753615035606,1.3979471,3837.2,3837.1,1.2722]
[1753615035812,0.53901,3837.3,3837.2,0.8504]
[1753615036108,0.53901,3837.3,3837.2,3.52]
[1753615036506,2.02791,3837.3,3837.2,0.8504]
[1753615036903,2.02791,3837.3,3837.2,3.52]
[1753615037106,0.53901,3837.3,3837.2,3.52]
[1753615037508,0.53901,3837.3,3836.9,3.2078]
[1753615037509,0.52105,3837.0,3836.9,4.0582]
[1753615037811,2.00999,3836.7,3836.6,0.8504]
[1753615038001,2.71829959,3836.7,3836.6,0.8504]
[1753615038202,0.52119,3836.0,3835.9,6.7278]
[1753615038400,2.71839959,3836.0,3835.9,0.8504]
[1753615038601,0.70830959,3836.0,3835.9,7.249]
[1753615038916,1.4397,3836.4,3835.9,7.249]
[1753615038917,0.52118,3836.1,3835.9,7.249]
[1753615039112,1.4397,3836.4,3835.9,3.2078]
[1753615039302,0.52116,3836.3,3836.2,3.52]
[1753615039603,2.01004,3836.4,3836.3,0.52115]
[1753615040004,0.52115,3836.3,3836.2,2.6696]
[1753615040205,1.4889,3836.5,3836.0,1.2722]
[1753615040412,0.52116,3836.3,3836.2,1.2722]
[1753615040613,0.52114,3836.4,3836.3,1.37154]
[1753615040907,3.2078,3836.9,3836.8,2.64368]
[1753615041112,1.4397,3837.1,3836.8,3.52]
[1753615041421,2.00994,3837.1,3837.0,0.8504]
[1753615041616,1.4889,3836.7,3836.3,3.2078]
[1753615041914,1.4889,3836.2,3836.1,0.52117]
[1753615042114,0.52119,3836.0,3835.9,3.2078]
[1753615042311,1.4889,3837.1,3836.3,1.2722]
[1753615042613,2.79151,3837.1,3836.4,4.04113]
[1753615042813,1.4889,3836.5,3836.4,4.04113]
[1753615043014,2.01002,3836.5,3836.4,3.52]
[1753615043313,2.01002,3836.5,3836.4,0.8504]
[1753615043715,2.01008,3836.1,3836.0,0.8504]
[1753615044910,1.4397,3836.1,3835.6,0.8504]
[1753615045111,1.30295,3836.1,3835.4,3.2078]
[1753615045415,2.01016,3835.5,3835.4,4.0582]
[1753615045604,1.96096,3835.5,3835.4,4.0582]
[1753615045809,0.52124,3835.6,3835.5,2.1226]
[1753615046009,0.52124,3835.6,3835.5,3.52]
[1753615046615,2.01014,3835.6,3835.5,0.8504]
[1753615047111,0.52124,3835.6,3835.5,3.52]
[1753615048510,2.03614,3835.6,3835.5,0.8504]
[1753615049912,0.52124,3835.6,3835.5,3.7037]
[1753615050110,1.5149,3836.2,3836.0,3.7751]
[1753615050417,0.52113,3836.5,3836.4,0.52113]
[1753615050719,3.2078,3836.8,3836.7,0.52109]
[1753615051017,3.72888,3836.8,3836.7,3.7751]
[1753615051210,3.2078,3836.8,3836.7,4.29619]
[1753615051513,0.52107,3836.9,3836.4,3.2078]
[1753615051915,0.52106,3837.0,3836.8,0.52108]
[1753615052114,0.52105,3837.1,3837.0,2.2507]
[1753615052305,0.52105,3837.1,3837.0,3.7751]
[1753615052708,0.018,3837.3,3837.1,3.7751]
[1753615052911,0.52105,3837.1,3837.0,0.52105]
[1753615053113,0.53901,3837.3,3837.1,0.52103]
[1753615053323,0.018,3837.3,3836.9,0.52106]
[1753615053615,0.52108,3836.8,3836.7,4.7322]
[1753615054006,0.52108,3836.8,3836.7,1.5244]
[1753615054209,0.52108,3836.8,3836.7,3.7751]
[1753615054408,2.03598,3836.8,3836.7,3.7751]
[1753615054624,2.03598,3836.8,3836.7,0.9218]
[1753615055217,0.57008,3836.8,3836.7,3.7751]
[1753615055516,2.03598,3836.8,3836.7,3.7751]
[1753615055718,2.03598,3836.8,3836.7,0.9218]
[1753615055917,1.30275,3836.7,3836.3,0.9218]
[1753615056118,2.03603,3836.4,3836.3,0.9218]
[1753615056314,2.03609,3836.0,3835.9,1.5244]
[1753615056612,0.52122,3835.8,3835.7,1.3289]
[1753615056814,2.03612,3835.8,3835.7,3.7751]
[1753615057613,0.52127,3835.4,3835.3,3.2078]
[1753615057812,2.03625,3834.9,3834.8,0.9218]
[1753615058017,0.1936,3834.9,3834.2,0.9218]
[1753615058316,2.03632,3834.3,3834.2,0.9218]
[1753615058912,0.52147,3833.9,3833.8,3.96811746]
[1753615059919,2.03637,3833.9,3833.8,3.96811746]
[1753615060217,2.03637,3833.9,3833.8,1.11481746]
[1753615060416,4.6737,3835.6,3833.9,1.3289]
[1753615060616,3.2078,3835.5,3835.0,0.9218]
[1753615060819,1.4659,3836.0,3835.3,0.52128]
[1753615061015,0.52126,3835.6,3835.3,0.52128]
[1753615061215,1.4659,3835.9,3835.3,2.8533]
[1753615061416,1.4659,3835.9,3835.2,3.2078]
[1753615061417,0.52124,3835.7,3835.4,2.04567]
[1753615061715,0.52124,3835.7,3835.5,3.7751]
[1753615061913,0.52124,3835.7,3835.6,3.7751]
[1753615062617,0.52122,3835.8,3835.6,3.7751]
[1753615062818,0.52122,3835.8,3835.7,3.7751]
[1753615063423,5.19492,3835.8,3835.7,0.9218]
[1753615063719,5.19492,3835.8,3835.3,0.9218]
[1753615063720,1.4659,3835.4,3835.3,0.9218]
[1753615063915,1.4659,3835.7,3835.4,2.8533]
[1753615064122,0.52126,3835.5,3835.3,0.52128]
[1753615064422,0.52127,3835.5,3835.3,0.52128]
[1753615064611,0.52125,3835.6,3835.4,0.52127]
[1753615064817,0.52125,3835.6,3835.5,3.7751]
[1753615065020,0.52123,3835.8,3835.2,3.2078]
[1753615065218,0.52124,3835.7,3835.5,0.52125]
[1753615065622,0.52122,3835.8,3835.6,0.52124]
[1753615065823,0.52123,3835.7,3835.5,0.52125]
[1753615066019,0.855,3835.2,3834.3,4.7322]
[1753615066225,3.6498,3835.2,3835.0,1.5244]
[1753615066526,0.52131,3835.1,3835.0,1.5244]
[1753615066720,2.7948,3835.1,3834.6,0.52138]
[1753615066924,0.52135,3834.8,3834.6,0.52138]
[1753615067224,2.7948,3835.1,3834.5,3.2078]
[1753615067524,0.52138,3834.6,3834.5,3.2078]
[1753615067925,2.7948,3836.1,3834.5,8.2078]
[1753615068128,3.31608,3835.3,3835.2,3.2078]
[1753615068423,2.7948,3835.0,3834.4,0.9218]
[1753615068628,3.2078,3835.8,3834.8,3.7751]
[1753615068828,0.52131,3835.1,3835.0,3.2078]
[1753615069024,1.30305,3835.8,3835.0,3.2078]
[1753615069225,0.52131,3835.1,3835.0,4.7322]
[1753615069519,0.52131,3835.1,3835.0,6.9829]
[1753615069921,0.52131,3835.1,3835.0,3.7751]
[1753615070127,3.31611,3835.1,3835.0,0.9218]
[1753615070430,0.52131,3835.1,3835.0,3.7751]
[1753615071523,0.5213,3835.2,3835.0,3.7751]
[1753615071729,6.0026,3835.6,3835.1,0.9218]
[1753615072031,6.0026,3835.6,3834.6,3.2078]
[1753615072032,0.52131,3835.1,3835.0,3.7751]
[1753615072331,1.85021,3835.1,3835.0,3.7751]
[1753615072527,3.6498,3834.7,3834.3,0.9218]
[1753615072729,1.3289,3834.5,3834.4,0.52141]
[1753615073034,1.4659,3834.9,3834.7,3.7751]
[1753615073328,0.52136,3834.8,3834.7,3.2078]
[1753615073533,0.52136,3834.8,3834.7,3.72917]
[1753615073936,0.52136,3834.8,3834.7,6.9829]
[1753615074241,0.52134,3834.9,3834.8,3.7751]
[1753615074538,1.85024,3834.9,3834.8,3.7751]
[1753615075026,1.85024,3834.9,3834.8,4.29645]
[1753615075235,1.3289,3835.1,3834.7,3.2078]
[1753615075433,1.3289,3835.1,3835.0,4.29643]
[1753615075629,4.5367,3835.6,3835.1,0.9218]
[1753615075830,0.52135,3834.8,3834.7,3.7751]
[1753615076034,3.6498,3835.3,3834.7,6.9829]
[1753615076339,0.52129,3835.3,3835.2,3.3746]
[1753615076736,0.52129,3835.3,3835.2,4.2964]
[1753615077239,0.52129,3835.3,3835.2,3.7751]
[1753615077444,0.52129,3835.3,3835.2,4.2964]
[1753615077942,0.52128,3835.4,3835.3,0.52127]
[1753615078242,0.52128,3835.4,3835.3,4.26578]
[1753615078536,1.3309,3836.8,3836.7,2.04079]
[1753615078741,1.3309,3836.8,3836.7,4.26559]
[1753615079337,1.85198,3836.8,3836.7,4.26559]
[1753615079843,1.4384,3837.0,3836.9,0.52107]
[1753615080042,3.674,3837.0,3836.9,0.52107]
[1753615080343,4.19505,3837.0,3836.9,0.52107]
[1753615080542,3.674,3837.0,3836.9,1.41227]
[1753615080838,2.7693,3837.0,3836.9,4.26557]
[1753615081042,3.29035,3837.0,3836.9,0.8912]
[1753615081842,2.7693,3837.0,3836.9,1.41227]
[1753615082343,0.52105,3837.1,3836.5,6.0611]
[1753615082344,1.3309,3837.1,3836.6,3.7445]
[1753615082641,3.29035,3837.0,3836.9,1.41227]
[1753615083036,3.29035,3837.0,3836.9,0.8912]
[1753615083233,2.7693,3837.0,3836.9,1.41227]
[1753615083442,3.29035,3837.0,3836.9,0.8912]
[1753615083639,3.29035,3837.0,3836.9,1.41227]
[1753615083838,1.3309,3837.1,3837.0,3.7445]
[1753615084040,3.29034,3837.1,3837.0,3.7445]
[1753615084348,3.29034,3837.1,3837.0,0.8912]
[1753615084546,1.95948,3836.8,3836.6,2.4109]
[1753615084848,3.2078,3837.2,3837.1,3.7445]
[1753615085041,3.72883,3837.2,3837.1,3.7445]
[1753615085437,1.85204,3836.4,3836.3,3.7445]
[1753615085638,3.29044,3836.4,3836.3,0.8912]
[1753615085842,4.19514,3836.4,3836.3,0.8912]
[1753615086037,3.29044,3836.4,3836.3,0.8912]
[1753615086242,1.3309,3836.7,3836.4,1.3336]
[1753615086447,0.52112,3836.5,3836.4,3.7445]
[1753615086647,3.29042,3836.5,3836.4,3.7445]
[1753615087147,0.52112,3836.5,3836.4,3.7445]
[1753615088040,2.7873,3837.3,3836.8,0.8912]
[1753615088340,1.4384,3836.7,3836.3,3.7445]
[1753615088547,3.29044,3836.4,3836.3,3.7445]
[1753615088744,4.19515,3836.3,3836.2,3.2078]
[1753615088952,0.52118,3836.1,3836.0,0.8912]
[1753615089142,3.29048,3836.1,3836.0,0.8912]
[1753615089448,3.29048,3836.1,3836.0,3.7445]
[1753615090344,3.29048,3836.1,3836.0,0.8912]
[1753615090545,4.19518,3836.1,3836.0,0.8912]
[1753615090751,4.1952,3835.9,3835.8,0.8912]
[1753615091741,0.52124,3835.6,3835.5,0.52125]
[1753615091941,3.29054,3835.6,3835.5,0.8912]
[1753615092142,3.674,3835.7,3835.0,4.099]
[1753615092449,4.19531,3835.1,3835.0,4.099]
[1753615093350,0.52138,3834.6,3834.5,4.099]
[1753615093550,2.7693,3834.6,3834.5,4.099]
[1753615093744,0.52134,3834.9,3834.8,0.8912]
[1753615094346,1.95974,3834.9,3834.8,0.8912]
[1753615094648,3.29064,3834.9,3834.8,0.8912]
[1753615094848,0.52138,3834.6,3834.5,6.0611]
[1753615095044,1.85228,3834.6,3834.5,6.0611]
[1753615095245,3.29068,3834.6,3834.5,6.0611]
[1753615095547,3.29068,3834.6,3834.5,6.9523]
[1753615095744,3.29068,3834.6,3834.1,4.099]
[1753615095745,0.9047,3834.5,3834.1,4.099]
[1753615095939,0.52147,3833.9,3833.8,2.41781746]
[1753615096139,3.29077,3833.9,3833.8,3.93751746]
[1753615096346,4.19547,3833.9,3833.8,1.08421746]
[1753615097048,4.19547,3833.9,3833.8,0.19301746]
[1753615097450,4.19547,3833.9,3833.8,1.08421746]
[1753615098552,4.19547,3833.9,3833.8,0.19301746]
[1753615098744,3.29086,3833.3,3833.2,2.2248]
[1753615098948,3.29086,3833.3,3832.8,3.7445]
[1753615098949,0.52161,3832.9,3832.8,3.7445]
[1753615099142,0.52161,3832.9,3832.8,6.9523]
[1753615099343,4.19561,3832.9,3832.8,3.2078]
[1753615099547,4.19561,3832.9,3832.8,4.099]
[1753615099548,3.29091,3832.9,3832.8,4.099]
[1753615099750,3.29091,3832.9,3832.8,6.9523]
[1753615100448,4.19561,3832.9,3832.8,4.099]
[1753615102051,4.19561,3832.9,3832.8,3.2078]
[1753615102448,3.29091,3832.9,3832.8,4.099]
[1753615102653,0.52161,3832.9,3832.8,6.9523]
[1753615103151,3.29091,3832.9,3832.8,6.9523]
[1753615103353,2.7693,3833.2,3832.9,2.7464]
[1753615103550,1.3309,3833.6,3833.1,1.5197]
[1753615103751,3.2078,3834.3,3833.5,1.5197]
[1753615103949,0.52149,3833.9,3833.8,2.2248]
[1753615104148,1.4384,3834.2,3833.4,3.2078]
[1753615104350,3.2078,3834.3,3833.4,3.2078]
[1753615104558,0.52145,3834.1,3834.0,4.26595]
[1753615104852,0.52145,3834.1,3834.0,6.9523]
[1753615105050,2.7693,3834.6,3834.1,1.5197]
[1753615105253,2.7693,3835.0,3834.2,2.8533]